fUSD/lending_fUSD_20250112
["ID","MTS","AMOUNT","RATE_DAILY","PERIOD"]
[348687845,1736716258187,-500.0,0.00011981,2]
[348687846,1736716258197,-500.0,0.00011981,2]
[348687847,1736716258207,-500.0,0.00011981,2]
[348687848,1736716258217,-500.0,0.00011981,2]
[348687849,1736716258227,-500.0,0.00011981,2]
[348687850,1736716258238,-500.0,0.00011981,2]
[348687851,1736716258251,-500.0,0.00011981,2]
[348687852,1736716258261,-500.0,0.00011981,2]
[348687853,1736716258272,-500.0,0.00011981,2]
[348687854,1736716258283,-500.0,0.00011981,2]
[348687855,1736716258296,-500.0,0.00011981,2]
[348687856,1736716258307,-500.0,0.00011981,2]
[348687857,1736716258317,-500.0,0.00011981,2]
[348687858,1736716258328,-500.0,0.00011981,2]
[348687859,1736716258340,-500.0,0.00011981,2]
[348687860,1736716258350,-500.0,0.00011981,2]
[348687861,1736716258360,-500.0,0.00011981,2]
[348687862,1736716258371,-500.0,0.00011981,2]
[348687863,1736716258383,-500.0,0.00011981,2]
[348687864,1736716258394,-500.0,0.00011981,2]
[348687865,1736716258405,-500.0,0.00011981,2]
[348687866,1736716258418,-500.0,0.00011981,2]
[348687867,1736716258428,-500.0,0.00011981,2]
[348687868,1736716258439,-500.0,0.00011981,2]
[348687869,1736716258449,-500.0,0.00011981,2]
[348687870,1736716258460,-500.0,0.00011981,2]
[348687871,1736716258470,-500.0,0.00011981,2]
[348687872,1736716258480,-500.0,0.00011981,2]
[348687873,1736716258491,-500.0,0.00011981,2]
[348687874,1736716258841,-500.0,0.00011981,2]
[348687875,1736716258855,-500.0,0.00011981,2]
[348687876,1736716258864,-500.0,0.00011981,2]
[348687877,1736716258874,-500.0,0.00011981,2]
[348687878,1736716258883,-500.0,0.00011981,2]
[348687879,1736716258892,-500.0,0.00011981,2]
[348687880,1736716258901,-500.0,0.00011981,2]
[348687881,1736716258910,-500.0,0.00011981,2]
[348687882,1736716258919,-500.0,0.00011981,2]
[348687883,1736716258928,-500.0,0.00011981,2]
[348687884,1736716258938,-500.0,0.00011981,2]
[348687885,1736716258947,-500.0,0.00011981,2]
[348687886,1736716258956,-500.0,0.00011981,2]
[348687887,1736716258965,-500.0,0.00011981,2]
[348687888,1736716258974,-500.0,0.00011981,2]
[348687889,1736716258983,-500.0,0.00011981,2]
[348687890,1736716258993,-500.0,0.00011981,2]
[348687891,1736716259002,-500.0,0.00011981,2]
[348687892,1736716259011,-500.0,0.00011981,2]
[348687893,1736716259021,-500.0,0.00011981,2]
[348687894,1736716259030,-500.0,0.00011981,2]
[348687895,1736716259040,-500.0,0.00011981,2]
[348687896,1736716259049,-500.0,0.00011981,2]
[348687897,1736716259059,-500.0,0.00011981,2]
[348687898,1736716259068,-500.0,0.00011981,2]
[348687899,1736716259078,-500.0,0.00011981,2]
[348687900,1736716259088,-500.0,0.00011981,2]
[348687901,1736716259098,-500.0,0.00011981,2]
[348687902,1736716259107,-500.0,0.00011981,2]
[348687903,1736716259117,-500.0,0.00011981,2]
[348687904,1736716259126,-500.0,0.00011981,2]
[348687905,1736716259135,-500.0,0.00011981,2]
[348687906,1736716259144,-500.0,0.00011981,2]
[348687907,1736716259153,-500.0,0.00011981,2]
[348687908,1736716259163,-500.0,0.00011981,2]
[348687909,1736716259172,-500.0,0.00011981,2]
[348687910,1736716259181,-500.0,0.00011981,2]
[348687911,1736716259190,-500.0,0.00011981,2]
[348687912,1736716259199,-500.0,0.00011981,2]
[348687913,1736716259209,-500.0,0.00011981,2]
[348687914,1736716259219,-500.0,0.00011981,2]
[348687915,1736716259228,-500.0,0.00011981,2]
[348687916,1736716259237,-500.0,0.00011981,2]
[348687917,1736716259250,-500.0,0.00011981,2]
[348687918,1736716259259,-500.0,0.00011981,2]
[348687919,1736716259268,-500.0,0.00011981,2]
[348687920,1736716259277,-500.0,0.00011981,2]
[348687921,1736716259287,-500.0,0.00011981,2]
[348687922,1736716259296,-500.0,0.00011981,2]
[348687923,1736716259305,-500.0,0.00011981,2]
[348687924,1736716259315,-500.0,0.00011981,2]
[348687925,1736716259326,-500.0,0.00011981,2]
[348687926,1736716259335,-500.0,0.00011981,2]
[348687927,1736716259346,-500.0,0.00011981,2]
[348687928,1736716259355,-500.0,0.00011981,2]
[348687929,1736716259364,-500.0,0.00011981,2]
[348687930,1736716259373,-500.0,0.00011981,2]
[348687931,1736716259383,-500.0,0.00011981,2]
[348687932,1736716259392,-500.0,0.00011981,2]
[348687933,1736716259402,-500.0,0.00011981,2]
[348687934,1736716259411,-500.0,0.00011981,2]
[348687935,1736716259420,-500.0,0.00011981,2]
[348687936,1736716259429,-500.0,0.00011981,2]
[348687937,1736716259438,-500.0,0.00011981,2]
[348687938,1736716259447,-500.0,0.00011981,2]
[348687939,1736716259456,-500.0,0.00011981,2]
[348687940,1736716259466,-500.0,0.00011981,2]
[348687941,1736716259475,-500.0,0.00011981,2]
[348687942,1736716259484,-500.0,0.00011981,2]
[348687943,1736716259493,-503.0,0.00011981,2]
[348687944,1736716259502,-5800.0,0.00011982,2]
[348687945,1736716259511,-875.07903539,0.00011984,2]
[348687946,1736716259520,-1038.77415177,0.00011987,2]
[348687947,1736716259529,-5800.0,0.00011987,2]
[348687948,1736716259539,-5800.0,0.0001199,2]
[348687949,1736716259548,-5800.0,0.0001199,2]
[348687950,1736716259558,-500.0,0.0001199,2]
[348687951,1736716259567,-513.59,0.0001199,2]
[348687952,1736716259577,-748.09,0.0001199,2]
[348687953,1736716259586,-535.62,0.0001199,2]
[348687954,1736716259597,-543.19,0.0001199,2]
[348687955,1736716259606,-500.0,0.0001199,2]
[348687956,1736716259615,-500.0,0.0001199,2]
[348687957,1736716259625,-541.06,0.0001199,2]
[348687958,1736716259634,-526.92,0.0001199,2]
[348687959,1736716259643,-517.06,0.0001199,2]
[348687960,1736716259652,-500.0,0.0001199,2]
[348687961,1736716259662,-500.0,0.0001199,2]
[348687962,1736716259671,-500.0,0.0001199,2]
[348687963,1736716259680,-629.33,0.0001199,2]
[348687964,1736716259690,-682.87,0.0001199,2]
[348687965,1736716259699,-500.0,0.0001199,2]
[348687966,1736716259707,-569.51,0.0001199,2]
[348687967,1736716259717,-500.0,0.0001199,2]
[348687968,1736716259726,-569.68,0.0001199,2]
[348687969,1736716259735,-500.0,0.0001199,2]
[348687970,1736716259744,-591.32,0.0001199,2]
[348687971,1736716259754,-500.0,0.0001199,2]
[348687972,1736716259763,-500.0,0.0001199,2]
[348687973,1736716259772,-646.32,0.0001199,2]
[348687974,1736716259782,-650.32,0.0001199,2]
[348687975,1736716259791,-525.84,0.0001199,2]
[348687976,1736716259800,-593.51357,0.0001199,2]
[348687977,1736716259809,-695.51,0.0001199,2]
[348687978,1736716259818,-584.49,0.0001199,2]
[348687979,1736716259828,-522.659471,0.0001199,2]
[348687980,1736716259837,-636.68,0.0001199,2]
[348687981,1736716259847,-592.13,0.0001199,2]
[348687982,1736716259856,-500.0,0.0001199,2]
[348687983,1736716259865,-734.86,0.0001199,2]
[348687984,1736716259875,-2629.02,0.0001199,2]
[348687985,1736716259884,-575.59,0.0001199,2]
[348687986,1736716259893,-552.75,0.0001199,2]
[348687987,1736716259902,-500.0,0.0001199,2]
[348687988,1736716259911,-727.34,0.0001199,2]
[348687989,1736716259921,-931.75,0.0001199,2]
[348687990,1736716259930,-874.85,0.0001199,2]
[348687991,1736716259939,-500.0,0.0001199,2]
[348687992,1736716259949,-530.37,0.0001199,2]
[348687993,1736716259958,-517.14,0.0001199,2]
[348687994,1736716259967,-653.99,0.0001199,2]
[348687995,1736716259976,-500.0,0.0001199,2]
[348687996,1736716259985,-902.27,0.0001199,2]
[348687997,1736716259995,-531.57,0.0001199,2]
[348687998,1736716260004,-500.0,0.0001199,2]
[348687999,1736716260014,-641.29,0.0001199,2]
[348688000,1736716260023,-628.58,0.0001199,2]
[348688001,1736716260033,-500.0,0.0001199,2]
[348688002,1736716260043,-765.22,0.0001199,2]
[348688003,1736716260052,-1357.6,0.0001199,2]
[348688004,1736716260062,-1370.1,0.0001199,2]
[348688005,1736716260072,-679.25,0.0001199,2]
[348688006,1736716260081,-500.0,0.0001199,2]
[348688007,1736716260091,-859.85,0.0001199,2]
[348688008,1736716260100,-4148.7,0.0001199,2]
[348688009,1736716260110,-649.21,0.0001199,2]
[348688010,1736716260120,-2868.01,0.0001199,2]
[348688011,1736716260129,-563.27,0.0001199,2]
[348688012,1736716260139,-509.07,0.0001199,2]
[348688013,1736716260149,-500.0,0.0001199,2]
[348688014,1736716260159,-530.97,0.0001199,2]
[348688015,1736716260168,-2824.82,0.0001199,2]
[348688016,1736716260178,-944.81,0.0001199,2]
[348688017,1736716260187,-631.88,0.0001199,2]
[348688018,1736716260197,-764.58,0.0001199,2]
[348688019,1736716260207,-1971.2,0.0001199,2]
[348688020,1736716260217,-560.31,0.0001199,2]
[348688021,1736716260227,-1683.99,0.0001199,2]
[348688022,1736716260237,-513.48,0.0001199,2]
[348688023,1736716260248,-695.93,0.0001199,2]
[348688024,1736716260259,-500.0,0.0001199,2]
[348688025,1736716260268,-600.21,0.0001199,2]
[348688026,1736716260278,-500.0,0.0001199,2]
[348688027,1736716260288,-1241.34,0.0001199,2]
[348688028,1736716260298,-1685.64,0.0001199,2]
[348688029,1736716260308,-720.14,0.0001199,2]
[348688030,1736716260317,-2357.49,0.0001199,2]
[348688031,1736716260328,-872.71,0.0001199,2]
[348688032,1736716260338,-1217.62,0.0001199,2]
[348688033,1736716260348,-1750.55,0.0001199,2]
[348688034,1736716260357,-500.0,0.0001199,2]
[348688035,1736716260366,-732.33,0.0001199,2]
[348688036,1736716260376,-3053.93,0.0001199,2]
[348688037,1736716260385,-559.78,0.0001199,2]
[348688038,1736716260395,-629.63,0.0001199,2]
[348688039,1736716260404,-2033.7,0.0001199,2]
[348688040,1736716260414,-500.0,0.0001199,2]
[348688041,1736716260424,-837.74,0.0001199,2]
[348688042,1736716260434,-1673.88,0.0001199,2]
[348688043,1736716260443,-1213.76,0.0001199,2]
[348688044,1736716260452,-860.74,0.0001199,2]
[348688045,1736716260463,-500.0,0.0001199,2]
[348688046,1736716260472,-500.0,0.0001199,2]
[348688047,1736716260481,-575.88,0.0001199,2]
[348688048,1736716260491,-589.49,0.0001199,2]
[348688049,1736716260500,-500.0,0.0001199,2]
[348688050,1736716260510,-827.31,0.0001199,2]
[348688051,1736716260520,-618.03,0.0001199,2]
[348688052,1736716260529,-813.4,0.0001199,2]
[348688053,1736716260539,-1213.75,0.0001199,2]
[348688054,1736716260549,-960.13,0.0001199,2]
[348688055,1736716260558,-651.11,0.0001199,2]
[348688056,1736716260568,-500.0,0.0001199,2]
[348688057,1736716260580,-2920.31,0.0001199,2]
[348688058,1736716260589,-500.0,0.0001199,2]
[348688059,1736716260600,-1171.04,0.0001199,2]
[348688060,1736716260610,-1197.65,0.0001199,2]
[348688061,1736716260620,-782.75,0.0001199,2]
[348688062,1736716260630,-500.0,0.0001199,2]
[348688063,1736716260640,-539.89,0.0001199,2]
[348688064,1736716260649,-1047.31,0.0001199,2]
[348688065,1736716260659,-770.45,0.0001199,2]
[348688066,1736716260668,-661.09,0.0001199,2]
[348688067,1736716260678,-595.07,0.0001199,2]
[348688068,1736716260687,-634.34,0.0001199,2]
[348688069,1736716260697,-1715.14,0.0001199,2]
[348688070,1736716260707,-727.56,0.0001199,2]
[348688071,1736716260717,-2899.2,0.0001199,2]
[348688072,1736716260727,-500.0,0.00011991,2]
[348688073,1736716260737,-500.0,0.00011991,2]
[348688074,1736716260747,-500.0,0.00011991,2]
[348688075,1736716260756,-500.0,0.00011991,2]
[348688076,1736716260765,-500.0,0.00011991,2]
[348688077,1736716260775,-510.11,0.00011991,2]
[348688078,1736716260783,-500.0,0.00011991,2]
[348688079,1736716260792,-664.54,0.00011991,2]
[348688080,1736716260802,-500.0,0.00011991,2]
[348688081,1736716260811,-500.0,0.00011991,2]
[348688082,1736716260820,-656.47,0.00011991,2]
[348688083,1736716260829,-500.0,0.00011991,2]
[348688084,1736716260839,-581.35270098,0.00011991,2]
[348688085,1736716260848,-513.94,0.00011991,2]
[348688086,1736716260858,-500.0,0.00011991,2]
[348688087,1736716260867,-586.47,0.00011991,2]
[348688088,1736716260877,-500.0,0.00011991,2]
[348688089,1736716260886,-500.0,0.00011991,2]
[348688090,1736716260896,-549.75,0.00011991,2]
[348688091,1736716260905,-500.0,0.00011991,2]
[348688092,1736716260915,-500.0,0.00011991,2]
[348688093,1736716260924,-500.0,0.00011991,2]
[348688094,1736716260933,-519.01,0.00011991,2]
[348688095,1736716260943,-273.18712725,0.00011991,2]
[348688096,1736716260952,-500.0,0.00011991,2]
[348688097,1736716260961,-686.15,0.00011991,2]
[348688098,1736716260971,-670.09,0.00011991,2]
[348688099,1736716260980,-753.63,0.00011991,2]
[348688100,1736716260990,-777.83,0.00011991,2]
[348688101,1736716260999,-389.90717949,0.00011991,2]
[348688102,1736716261009,-500.0,0.00011991,2]
[348688103,1736716261018,-500.0,0.00011991,2]
[348688104,1736716261027,-610.24,0.00011991,2]
[348688105,1736716261037,-500.0,0.00011991,2]
[348688106,1736716261046,-644.42,0.00011991,2]
[348688107,1736716261055,-500.0,0.00011991,2]
[348688108,1736716261065,-635.29,0.00011991,2]
[348688109,1736716261076,-635.42,0.00011991,2]
[348688110,1736716261085,-563.42,0.00011991,2]
[348688111,1736716261096,-500.0,0.00011991,2]
[348688112,1736716261106,-629.34,0.00011991,2]
[348688113,1736716261115,-500.0,0.00011991,2]
[348688114,1736716261125,-500.0,0.00011991,2]
[348688115,1736716261134,-781.14,0.00011991,2]
[348688116,1736716261144,-500.0,0.00011991,2]
[348688117,1736716261153,-749.61,0.00011991,2]
[348688118,1736716261163,-807.51,0.00011991,2]
[348688119,1736716261173,-95001.7234731,0.00011999,2]
[348688120,1736716261182,-1566.34,0.00011999,2]
[348688121,1736716261192,-1566.34,0.00011999,2]
[348688122,1736716261201,-1135767.64287485,0.00011999,4]
[348688123,1736716261492,-500.0,0.00010072,2]
[348688124,1736716261502,-818.77350001,0.00011999,4]
[348688125,1736716261532,-422.25836631,0.00010346,2]
[348688126,1736716261549,-77.74163369,0.00010346,2]
[348688127,1736716261558,-448.53516625,0.00011168,2]
[348688128,1736716261571,-124.19483375,0.00011168,2]
[348688129,1736716261580,-21223.91173457,0.00011999,4]
[348688130,1736716262173,-500.0,0.0001062,2]
[348688131,1736716262183,-500.0,0.00010795,2]
[348688132,1736716262192,-500.0,0.00010894,2]
[348688133,1736716262202,-500.0,0.00011168,2]
[348688134,1736716262211,-922.53,0.00011276,2]
[348688135,1736716262221,-572.73,0.00011442,2]
[348688136,1736716262230,-500.0,0.00011442,2]
[348688137,1736716262242,-922.53,0.0001155,2]
[348688138,1736716262256,-572.73,0.00011716,2]
[348688139,1736716262265,-500.0,0.00011716,2]
[348688140,1736716262276,-572.73,0.0001199,2]
[348688141,1736716262286,-500.0,0.0001199,2]
[348688142,1736716262297,-24267.43803709,0.00011999,4]
[348688143,1736716262312,-306605.97483208,0.00011999,4]
[348688144,1736716262353,-6983.86174478,0.00011899,2]
[348688145,1736716262363,-412255.23851414,0.00011999,4]
[348688146,1736716262645,-379.2680248,0.00011824,2]
[348688147,1736716262660,-543.2619752,0.00011824,2]
[348688148,1736716262671,-258.1580248,0.00011999,4]
[348688149,1736716262689,-4715.40407992,0.00011999,4]
[348688150,1736716307491,777.22,8.395e-05,2]
[348688151,1736716310505,500.0,8.494e-05,2]
[348688157,1736716630875,194.59,0.000123,31]
[348688158,1736716630935,194.59,0.000123,31]
[348688159,1736716631003,194.59,0.000123,31]
[348688160,1736716631059,194.59,0.000123,31]
[348688161,1736716631121,194.59,0.000123,31]
[348688162,1736716631176,194.59,0.000123,31]
[348688163,1736716631344,194.59,0.000123,31]
[348688164,1736716631404,194.59,0.000123,31]
[348688165,1736716631466,194.59,0.000123,31]
[348688166,1736716631576,194.59,0.000123,31]
[348688167,1736716631619,194.59,0.000123,31]
[348688168,1736716631661,194.59,0.000123,31]
[348688169,1736716631706,194.59,0.000123,31]
[348688170,1736716631752,194.59,0.000123,31]
[348688171,1736716631808,194.59,0.000123,31]
[348688172,1736716631857,194.59,0.000123,31]
[348688174,1736716869335,500.0,0.00023,120]
[348688175,1736716869846,500.0,0.00023,120]
[348688176,1736716869876,500.0,0.00023,120]
[348688177,1736716870325,500.0,0.00023,120]
[348688178,1736716870356,500.0,0.00023,120]
[348688179,1736716870782,500.0,0.00023,120]
[348688180,1736716870812,500.0,0.00023,120]
[348688181,1736716871237,500.0,0.00023,120]
[348688182,1736716871265,500.0,0.00023,120]
[348688183,1736716871710,500.0,0.00023,120]
[348688184,1736716871981,500.0,0.00023,120]
[348688185,1736716872191,500.68183485,0.00023,120]
[348688186,1736716872720,609.37912851,0.00023,120]
[348688187,1736716938859,625.0,0.00023,120]
[348688188,1736716951316,1900.0,0.00023,120]
[348688190,1736717243169,163.47,0.000123,31]
[348688191,1736717243235,163.47,0.000123,31]
[348688192,1736717243280,163.47,0.000123,31]
[348688193,1736717243324,163.47,0.000123,31]
[348688194,1736717243373,163.47,0.000123,31]
[348688195,1736717243424,163.47,0.000123,31]
[348688196,1736717243472,163.47,0.000123,31]
[348688197,1736717243521,163.47,0.000123,31]
[348688198,1736717243573,163.47,0.000123,31]
[348688199,1736717243622,163.47,0.000123,31]
[348688200,1736717243684,163.47,0.000123,31]
[348688201,1736717243733,163.47,0.000123,31]
[348688202,1736717243795,163.47,0.000123,31]
[348688203,1736717243851,163.47,0.000123,31]
[348688204,1736717243921,163.47,0.000123,31]
[348688205,1736717243983,163.47,0.000123,31]
[348688207,1736717257840,766.17,8.219e-05,2]
[348688208,1736717274068,3500.0,0.00023,120]
[348688229,1736717431833,-250.0,9.262e-05,2]
[348688230,1736717431843,-250.0,9.431e-05,2]
[348688231,1736717431852,-334.10534825,9.467e-05,2]
[348688232,1736717431887,-498.90465175,9.467e-05,2]
[348688233,1736717431897,-84.4194001,9.498e-05,2]
[348688234,1736717431908,-352.7105999,9.498e-05,2]
[348688235,1736717431919,-472.48,9.528e-05,2]
[348688236,1736717431929,-192.75195656,9.54e-05,2]
[348688237,1736717431941,-254.48804344,9.54e-05,2]
[348688238,1736717431950,-337.12,9.764e-05,2]
[348688239,1736717431959,-353.63794241,9.937e-05,2]
[348688240,1736717431971,-212.87753756,9.937e-05,2]
[348688241,1736717431982,-1136.96725649,9.972e-05,2]
[348688242,1736717432073,-1023.36525247,9.972e-05,2]
[348688243,1736717432085,-629.63474753,9.972e-05,2]
[348688244,1736717432138,-7951.95134351,9.972e-05,2]
[348688245,1736717432147,-478.8054,9.972e-05,2]
[348688246,1736717432158,-5216.90398257,9.998e-05,2]
[348688247,1736717432168,-1339.85,9.999e-05,2]
[348688248,1736717432177,-932.97,9.999e-05,2]
[348688249,1736717432187,-575.22,9.999e-05,2]
[348688250,1736717432197,-1547.43,9.999e-05,2]
[348688251,1736717432207,-150.0,9.999e-05,2]
[348688252,1736717432216,-625.6,9.999e-05,2]
[348688253,1736717432226,-500.0,9.999e-05,2]
[348688254,1736717432235,-914.07,9.999e-05,2]
[348688255,1736717432245,-500.0,9.999e-05,2]
[348688256,1736717432254,-0.12815601,9.999e-05,2]
[348688257,1736717432270,-393.08355647,9.999e-05,2]
[348688258,1736717432288,-106.78828752,9.999e-05,2]
[348688259,1736717432298,-500.0,9.999e-05,2]
[348688260,1736717432307,-500.0,9.999e-05,2]
[348688261,1736717432316,-568.37,9.999e-05,2]
[348688262,1736717432326,-500.0,9.999e-05,2]
[348688263,1736717432335,-188.05,0.0001,2]
[348688264,1736717432344,-500.0,0.0001,2]
[348688265,1736717432358,-20996.49171243,0.0001,2]
[348688274,1736717437759,-524.06,9.999e-05,2]
[348688275,1736717437768,-38166.86511149,0.0001,2]
[348688276,1736717437780,-18971.32821136,0.0001,2]
[348688277,1736717437829,-467.85253747,0.0001,2]
[348688278,1736717437841,-346.71251653,0.0001,2]
[348688279,1736717437893,-327.3899965,0.0001,2]
[348688280,1736717437905,-463.4202856,0.0001,2]
[348688281,1736717437915,-1398.901878,0.0001,2]
[348688282,1736717438015,-467.05,0.0001,2]
[348688283,1736717438027,-673.38754014,0.0001,2]
[348688284,1736717438038,-3412.39,0.0001,2]
[348688285,1736717438076,-2694130.83668155,0.0001,2]
[348688286,1736717438085,-331.62505289,0.0001,2]
[348688287,1736717438094,-7312.62577763,0.0001,2]
[348688288,1736717438104,-15368023.84190323,0.0001,2]
[348688301,1736717439861,-1728.77262585,0.0001,2]
[348688302,1736717439876,-1925.36,0.0001,2]
[348688303,1736717440090,-10883.44643863,0.0001,2]
[348688304,1736717440102,-330.46958979,0.0001,2]
[348688305,1736717440113,-12092.77149674,0.0001,2]
[348688578,1736717442920,-304.52999997,0.0001,2]
[348688592,1736717443036,-425.73802,0.0001,2]
[348688602,1736717443128,-331596.09320843,0.0001,2]
[348688605,1736717443140,-32721.15975101,0.0001,2]
[348688607,1736717443157,-526.2331871,0.0001,2]
[348688614,1736717443218,-425489.6157296,0.0001,2]
[348688616,1736717443230,-46882.94057999,0.0001,2]
[348688623,1736717443284,-412255.23851414,0.0001,2]
[348688882,1736717447155,-314181.33630584,0.0001,2]
[348688883,1736717447167,-1000.93842479,0.0001,2]
[348688884,1736717447224,-56810.58143161,0.0001,2]
[348688885,1736717447248,-948.42054069,0.0001,2]
[348688887,1736717854802,152.59,0.000123,31]
[348688888,1736717854859,152.59,0.000123,31]
[348688889,1736717854912,152.59,0.000123,31]
[348688890,1736717854960,152.59,0.000123,31]
[348688891,1736717855002,152.59,0.000123,31]
[348688892,1736717855045,152.59,0.000123,31]
[348688893,1736717855088,152.59,0.000123,31]
[348688894,1736717855133,152.59,0.000123,31]
[348688895,1736717855180,152.59,0.000123,31]
[348688896,1736717855228,152.59,0.000123,31]
[348688897,1736717855277,152.59,0.000123,31]
[348688898,1736717855320,152.59,0.000123,31]
[348688899,1736717855364,152.59,0.000123,31]
[348688900,1736718069917,500.0,9.999e-05,7]
[348688901,1736718162290,756.53,8.219e-05,2]
[348688902,1736718179408,250.0,8.993e-05,2]
[348688903,1736718204772,163.65,8.993e-05,2]
[348688911,1736718464779,152.6,0.000123,31]
[348688912,1736718464830,152.6,0.000123,31]
[348688913,1736718464889,152.6,0.000123,31]
[348688914,1736718465025,152.6,0.000123,31]
[348688915,1736718465077,152.6,0.000123,31]
[348688916,1736718465122,152.6,0.000123,31]
[348688917,1736718465168,152.6,0.000123,31]
[348688918,1736718465217,152.6,0.000123,31]
[348688919,1736718465266,152.6,0.000123,31]
[348688920,1736718465315,152.6,0.000123,31]
[348688921,1736718465379,152.6,0.000123,31]
[348688922,1736718465450,152.6,0.000123,31]
[348688923,1736718465572,152.6,0.000123,31]
[348688924,1736718465620,152.6,0.000123,31]
[348688929,1736718632102,-218.56,9.008e-05,2]
[348688930,1736718632112,-108.19996925,9.079e-05,2]
[348688931,1736718632214,-426.20493002,9.079e-05,2]
[348688932,1736718632274,-131.99510073,9.079e-05,2]
[348688933,1736718632283,-176.75003927,9.3e-05,3]
[348688934,1736718632393,-723.24996073,9.3e-05,3]
[348688935,1736718632402,-300.0,9.345e-05,2]
[348688936,1736718632412,-197.06280231,9.346e-05,2]
[348688937,1736718632421,-50000.0,9.346e-05,2]
[348688938,1736718632430,-167.27,9.346e-05,2]
[348688939,1736718632439,-150.0,9.37e-05,2]
[348688940,1736718632448,-1900.0,9.4e-05,3]
[348688941,1736718632461,-156.63,9.477e-05,2]
[348688942,1736718632471,-150.0,9.499e-05,2]
[348688943,1736718632481,-6421.212,9.5e-05,2]
[348688944,1736718632490,-253.138,9.5e-05,2]
[348688945,1736718632498,-2900.0,9.5e-05,3]
[348688946,1736718632508,-3900.0,9.6e-05,3]
[348688947,1736718632517,-185.71,9.658e-05,2]
[348688948,1736718632526,-4900.0,9.7e-05,3]
[348688949,1736718632535,-2627.7786,9.8e-05,2]
[348688950,1736718632544,-900.0,9.8e-05,3]
[348688951,1736718632553,-514.2541,9.899e-05,2]
[348688953,1736718632562,-5377.8791,9.899e-05,2]
[348688955,1736718632571,-45699.0724,9.899e-05,2]
[348688956,1736718632580,-18298.6233,9.9e-05,2]
[348688958,1736718632589,-3781.0722,9.9e-05,2]
[348688960,1736718632598,-900.0,9.9e-05,3]
[348688962,1736718632607,-5000.0,9.9e-05,2]
[348688963,1736718632616,-1000.0,9.9e-05,2]
[348688965,1736718632625,-500.0,9.973e-05,2]
[348688967,1736718632634,-151.86282997,9.973e-05,2]
[348688969,1736718632643,-500.0,9.999e-05,2]
[348688971,1736718632652,-656.56,9.999e-05,2]
[348688973,1736718632661,-500.0,9.999e-05,2]
[348688974,1736718632670,-500.0,9.999e-05,2]
[348688976,1736718632679,-500.0,9.999e-05,2]
[348688978,1736718632688,-500.0,9.999e-05,2]
[348688980,1736718632696,-500.0,9.999e-05,2]
[348688982,1736718632707,-500.0,9.999e-05,2]
[348688984,1736718632716,-500.0,9.999e-05,2]
[348688985,1736718632725,-580.03,9.999e-05,2]
[348688987,1736718632735,-500.0,9.999e-05,2]
[348688989,1736718632744,-500.0,9.999e-05,2]